bitfinex-derivatives/quotes_BTCF0:USTF0_20210109
["timestamp","ask_amount","ask_price","bid_price","bid_amount"]
[1610204861583,0.13632608,40789.0,40788.0,0.11783]
[1610204861982,4.06772608,40789.0,40788.0,0.11783]
[1610204864785,4.06772608,40789.0,40783.0,0.13632608]
[1610204865583,0.13632608,40784.0,40783.0,0.13632608]
[1610204865786,0.61782608,40784.0,40777.0,2.50480515]
[1610204865986,0.13632608,40784.0,40774.0,2.50478174]
[1610204866186,3.3601,40777.0,40774.0,2.50478174]
[1610204866386,3.3601,40777.0,40772.0,2.50485524]
[1610204866585,3.3601,40777.0,40768.0,2.65212184]
[1610204866586,2.91140674,40777.0,40771.0,2.50349402]
[1610204866786,2.91140674,40777.0,40769.0,2.50370892]
[1610204867286,2.91140674,40777.0,40770.0,0.00021295]
[1610204867485,2.91140674,40777.0,40770.0,0.10425295]
[1610204867686,0.13632608,40771.0,40770.0,0.24036608]
[1610204868486,0.13632608,40771.0,40770.0,0.24057903]
[1610204868687,0.13632608,40771.0,40770.0,0.24036608]
[1610204868888,2.91140674,40777.0,40770.0,0.24036608]
[1610204869790,2.46267402,40777.0,40776.0,0.13632608]
[1610204869991,0.13632608,40779.0,40776.0,0.13632608]
[1610204870792,4.083,40795.0,40776.0,0.13632608]
[1610204870989,0.2993,40804.0,40776.0,0.13632608]
[1610204871190,0.08451,40805.0,40781.0,3.1457]
[1610204871390,0.08862,40814.0,40781.0,3.1457]
[1610204871590,2.807,40818.0,40781.0,3.1457]
[1610204871789,2.807,40818.0,40806.0,0.13632608]
[1610204872892,1.5,40839.0,40806.0,0.13632608]
[1610204873092,3.6906,40837.0,40806.0,3.81942608]
[1610204873693,0.13632608,40807.0,40806.0,3.81942608]
[1610204874094,0.13632608,40807.0,40806.0,0.13632608]
[1610204877996,0.13632608,40807.0,40799.0,3.4256]
[1610204878396,0.13632608,40807.0,40800.0,0.00021291]
[1610204879796,0.13632608,40801.0,40800.0,0.00021291]
[1610204881198,0.20922608,40801.0,40800.0,0.00021291]
[1610204881400,0.13632608,40801.0,40800.0,0.00021291]
[1610204884502,0.21082608,40801.0,40800.0,0.00021291]
[1610204884904,0.08728,40812.0,40800.0,0.00021291]
[1610204885104,0.568,40839.0,40808.0,3.0804]
[1610204885303,0.568,40839.0,40800.0,0.00021291]
[1610204885503,0.641,40839.0,40813.0,3.3761]
[1610204885704,0.073,40839.0,40809.0,0.00021286]
[1610204885905,0.073,40839.0,40823.0,0.13632608]
[1610204887106,0.073,40839.0,40824.0,0.00021279]
[1610204887906,0.13632608,40825.0,40824.0,0.00021279]
[1610204888308,0.20912608,40825.0,40824.0,0.00021279]
[1610204889506,0.13632608,40825.0,40824.0,0.00021279]
[1610204890507,0.073,40839.0,40824.0,0.00021279]
[1610204891008,1.5,40861.0,40824.0,0.00021279]
[1610204891411,1.0,40865.0,40824.0,0.00021279]
[1610204891612,1.5,40864.0,40824.0,0.00021279]
[1610204891816,1.5,40864.0,40832.0,0.13632608]
[1610204892213,3.915,40858.0,40832.0,0.13632608]
[1610204892814,1.5,40857.0,40832.0,0.13632608]
[1610204893815,0.0733,40853.0,40843.0,0.13632608]
[1610204894015,0.09669,40853.0,40843.0,0.13632608]
[1610204896017,0.13632608,40844.0,40843.0,0.13632608]
[1610204897417,0.13632608,40844.0,40843.0,0.13653883]
[1610204897818,0.13632608,40844.0,40843.0,0.13632608]
[1610204898518,0.13632608,40844.0,40843.0,0.13653883]
[1610204906428,0.13632608,40844.0,40843.0,0.00021275]
[1610204906828,0.13632608,40844.0,40839.0,0.00020918]
[1610204910735,0.21658608,40844.0,40839.0,0.00020918]
[1610204915236,0.21658608,40844.0,40839.0,0.00943244]
[1610204915636,0.21658608,40844.0,40830.0,0.00943287]
[1610204915836,0.21658608,40844.0,40840.0,0.00020912]
[1610204916035,0.21658608,40844.0,40831.0,0.00020912]
[1610204916237,0.21658608,40844.0,40831.0,0.00943347]
[1610204916436,0.21658608,40844.0,40830.0,0.00943347]
[1610204916636,0.21658608,40844.0,40832.0,0.00943347]
[1610204916837,0.21658608,40844.0,40831.0,0.00943329]
[1610204917236,0.21658608,40844.0,40830.0,0.00943347]
[1610204917437,0.21658608,40844.0,40832.0,0.00943435]
[1610204917636,0.21658608,40844.0,40831.0,0.00943444]
[1610204918041,0.08026,40844.0,40833.0,0.00943437]
[1610204918237,3.6111,40847.0,40832.0,0.00943431]
[1610204918438,3.6111,40847.0,40834.0,0.00943431]
[1610204918739,0.11674243,40844.0,40833.0,0.0094338]
[1610204918938,0.22157243,40844.0,40835.0,0.00943359]
[1610204919339,0.22157243,40844.0,40830.0,0.00943354]
[1610204919540,0.22157243,40844.0,40836.0,0.00943364]
[1610204919741,0.22157243,40844.0,40831.0,0.00943377]
[1610204920140,0.22157243,40844.0,40837.0,0.00943389]
[1610204920340,0.22157243,40844.0,40832.0,0.00943389]
[1610204920544,0.22157243,40844.0,40838.0,0.00943392]
[1610204920940,0.22157243,40844.0,40833.0,0.00943417]
[1610204921142,0.22157243,40844.0,40839.0,0.00020912]
[1610204921342,0.22157243,40844.0,40834.0,0.00943436]
[1610204921742,0.22157243,40844.0,40840.0,0.00020912]
[1610204921940,0.22157243,40844.0,40835.0,0.0094345]
[1610204922141,0.13632608,40836.0,40831.0,0.0092254]
[1610204922541,0.13632608,40836.0,40829.0,4.0757]
[1610204922740,0.13632608,40836.0,40832.0,0.00943544]
[1610204922941,0.13632608,40836.0,40830.0,0.00943544]
[1610204923341,0.13632608,40836.0,40833.0,0.00943509]
[1610204923542,0.13632608,40836.0,40831.0,0.00943504]
[1610204923745,0.13632608,40836.0,40834.0,0.00020915]
[1610204923943,0.13632608,40836.0,40832.0,0.00943489]
[1610204924341,0.13632608,40836.0,40830.0,0.0094348]
[1610204924542,0.13632608,40836.0,40833.0,0.00943486]
[1610204924743,0.13632608,40836.0,40831.0,0.00943493]
[1610204925143,0.13632608,40836.0,40830.0,0.00943486]
[1610204925343,0.13632608,40836.0,40832.0,0.00943491]
[1610204925544,0.13632608,40836.0,40831.0,0.00943485]
[1610204925943,0.13632608,40836.0,40833.0,0.00943485]
[1610204926143,0.13632608,40836.0,40832.0,0.00943481]
[1610204926344,0.13632608,40836.0,40834.0,0.00020915]
[1610204926744,0.13632608,40836.0,40833.0,0.00943469]
[1610204926944,0.13632608,40836.0,40835.0,0.00020915]
[1610204927145,0.13632608,40836.0,40834.0,0.00020915]
[1610204927546,0.13632608,40836.0,40835.0,0.00020914]
[1610204927745,4.22292608,40836.0,40835.0,0.00020914]
[1610204927943,4.22292608,40836.0,40825.0,0.00943563]
[1610204928146,0.13632608,40826.0,40825.0,0.00020914]
[1610204928347,0.13632608,40826.0,40823.0,0.00922676]
[1610204928545,3.84742608,40826.0,40825.0,0.00020915]
[1610204928747,3.84742608,40826.0,40824.0,0.00943693]
[1610204928947,3.84742608,40826.0,40810.0,3.6455]
[1610204928948,3.84742608,40826.0,40825.0,0.00020917]
[1610204929347,3.84742608,40826.0,40811.0,0.03548463]
[1610204929547,3.84742608,40826.0,40825.0,0.00020917]
[1610204929948,3.84742608,40826.0,40812.0,0.00943755]
[1610204930147,3.7111,40826.0,40811.0,0.00922898]
[1610204930347,3.7111,40826.0,40813.0,0.00943846]
[1610204930547,3.7111,40826.0,40812.0,0.0094387]
[1610204930950,3.7111,40826.0,40814.0,0.00943874]
[1610204931147,3.7111,40826.0,40813.0,0.00943899]
[1610204931347,3.7111,40826.0,40815.0,0.00020918]
[1610204931747,3.7111,40826.0,40814.0,0.00020918]
[1610204931947,3.7111,40826.0,40816.0,0.00020918]
[1610204932147,0.13632608,40817.0,40815.0,0.00020918]
[1610204932549,0.24371608,40817.0,40811.0,0.00922964]
[1610204932750,0.24371608,40817.0,40816.0,0.0002092]
[1610204932950,0.24371608,40817.0,40811.0,0.00943884]
[1610204933151,0.24371608,40817.0,40811.0,0.00922964]
[1610204933352,0.24371608,40817.0,40816.0,0.00020919]
[1610204933556,0.24371608,40817.0,40811.0,0.00943883]
[1610204933753,0.24371608,40817.0,40816.0,0.00020919]
[1610204934153,0.24371608,40817.0,40812.0,0.00020919]
[1610204934353,0.24371608,40817.0,40816.0,0.00020919]
[1610204934554,0.24371608,40817.0,40813.0,0.00020919]
[1610204934754,0.24371608,40817.0,40816.0,0.00020919]
[1610204935154,0.24371608,40817.0,40811.0,0.00020919]
[1610204935355,0.24371608,40817.0,40816.0,0.00020919]
[1610204935555,0.24371608,40817.0,40812.0,0.00020919]
[1610204935956,0.24371608,40817.0,40811.0,0.00020919]
[1610204936159,0.13632608,40812.0,40810.0,3.6455]
[1610204936658,0.13632608,40812.0,40811.0,0.0002092]
[1610204937561,0.13632608,40812.0,40800.0,0.13632608]
[1610204937760,0.13632608,40812.0,40811.0,0.00020921]
[1610204937961,3.85422608,40812.0,40811.0,0.00020921]
[1610204938362,1.63632608,40812.0,40811.0,0.00020921]
[1610204938562,1.63632608,40812.0,40796.0,0.00944206]
[1610204938764,3.1169,40802.0,40791.0,2.52207862]
[1610204938962,3.1169,40802.0,40797.0,0.00020925]
[1610204939362,3.1169,40802.0,40788.0,0.00944445]
[1610204939561,3.1169,40802.0,40798.0,0.00020925]
[1610204939762,3.1169,40802.0,40789.0,0.00020925]
[1610204940062,0.13632608,40790.0,40788.0,0.00944426]
[1610204940463,0.13632608,40790.0,40788.0,0.00923501]
[1610204940661,0.13632608,40790.0,40789.0,0.00020926]
[1610204940863,0.13632608,40790.0,40789.0,0.00944452]
[1610204941063,0.13632608,40790.0,40789.0,0.00923526]
[1610204941265,0.13632608,40790.0,40788.0,0.00020926]
[1610204941463,3.1169,40802.0,40789.0,0.00944447]
[1610204941664,3.1169,40802.0,40789.0,0.00020926]
[1610204941866,3.1169,40802.0,40790.0,0.00944442]
[1610204942064,3.1169,40802.0,40794.0,0.13632608]
[1610204942468,3.1169,40802.0,40795.0,0.00944508]
[1610204943264,3.1169,40802.0,40787.0,0.00944538]
[1610204943469,3.1169,40802.0,40796.0,0.00944538]
[1610204943868,3.1169,40802.0,40797.0,0.00020927]
[1610204944266,3.1169,40802.0,40789.0,0.13632608]
[1610204944668,3.1169,40802.0,40798.0,0.00020927]
[1610204944868,0.11367,40807.0,40790.0,0.00944579]
[1610204945070,0.11367,40807.0,40799.0,0.00020927]
[1610204945469,3.3042,40812.0,40791.0,3.24290928]
[1610204945669,3.3042,40812.0,40800.0,0.00020928]
[1610204945870,1.5,40811.0,40792.0,0.00020928]
[1610204946069,0.13632608,40793.0,40792.0,0.00020928]
[1610204946270,0.13632608,40793.0,40791.0,3.2427]
[1610204946475,0.13632608,40793.0,40792.0,0.00020928]
[1610204953578,0.13632608,40793.0,40790.0,0.00944721]
[1610204953778,0.13632608,40793.0,40792.0,0.00020928]
[1610204953982,0.13632608,40793.0,40791.0,0.00020928]
[1610204954279,0.13632608,40793.0,40790.0,0.00944721]
[1610204954480,0.09254,40805.0,40792.0,3.9262]
[1610204954680,0.10739,40817.0,40792.0,3.92640934]
[1610204954881,1.5,40837.0,40793.0,0.00020934]
[1610204955080,3.8853,40835.0,40801.0,3.5803]
[1610204955685,1.5,40832.0,40802.0,0.00020934]
[1610204956081,0.13632608,40803.0,40802.0,0.13653542]
[1610204957183,0.09766,40806.0,40802.0,0.13653542]
[1610204957184,0.09766,40806.0,40802.0,0.14578794]
[1610204957783,0.0727,40805.0,40803.0,0.00946126]
[1610204957983,0.09766,40806.0,40803.0,0.00946126]
[1610204958385,0.0728,40805.0,40803.0,0.00946126]
[1610204960188,0.07467,40818.0,40803.0,0.00946126]
[1610204962090,0.07467,40818.0,40817.0,0.13632608]
[1610204962491,0.07467,40818.0,40817.0,0.13653535]
[1610204962892,0.0734,40818.0,40817.0,0.13653535]
[1610204963392,2.9936,40840.0,40817.0,0.13653535]
[1610204963794,2.9936,40840.0,40818.0,0.00945568]
[1610204964193,0.13632608,40819.0,40818.0,0.00945568]
[1610204964594,0.13632608,40819.0,40818.0,0.00020927]
[1610204964993,0.21012608,40819.0,40818.0,0.00020927]
[1610204965193,0.0738,40819.0,40818.0,0.00020927]
[1610204966092,0.0738,40819.0,40818.0,0.00945413]
[1610204967495,0.13632608,40826.0,40818.0,0.00945413]
[1610204967695,0.13632608,40826.0,40818.0,0.00020927]
[1610204967994,0.13632608,40826.0,40819.0,0.0002126]
[1610204968195,0.08153,40829.0,40823.0,0.13632608]
[1610204968694,0.08153,40829.0,40824.0,0.0002126]
[1610204969097,0.08153,40829.0,40813.0,0.01037475]
[1610204969294,0.08153,40829.0,40825.0,0.0002126]
[1610204969695,0.08153,40829.0,40813.0,0.01037475]
[1610204969895,0.10205,40829.0,40826.0,0.0002126]
[1610204970095,0.10205,40829.0,40814.0,0.0002126]
[1610204970295,0.13632608,40827.0,40818.0,0.13632608]
[1610204970695,0.13632608,40827.0,40819.0,0.00021261]
[1610204971698,0.13632608,40827.0,40813.0,0.00021261]
[1610204972096,0.13632608,40827.0,40820.0,0.00021261]
[1610204972296,0.13632608,40827.0,40812.0,2.9065]
[1610204972297,0.10205,40829.0,40814.0,0.00021261]
[1610204972496,0.10205,40829.0,40821.0,0.00021261]
[1610204972899,0.10205,40829.0,40815.0,0.00021261]
[1610204973098,0.10205,40829.0,40822.0,0.00021261]
[1610204973297,0.10205,40829.0,40816.0,0.00021261]
[1610204973497,0.10205,40829.0,40823.0,0.00021261]
[1610204973798,0.10205,40829.0,40813.0,0.00021261]
[1610204974099,0.10205,40829.0,40824.0,0.00021261]
[1610204974300,0.10205,40829.0,40814.0,0.00021261]
[1610204974699,0.10205,40829.0,40813.0,0.00021261]
[1610204974900,0.10205,40829.0,40815.0,0.00021261]
[1610204975101,0.10205,40829.0,40814.0,0.00021261]
[1610204975302,3.1957,40830.0,40814.0,0.00021261]
[1610204975501,0.09062,40829.0,40812.0,3.04282608]
[1610204975703,0.09062,40829.0,40815.0,0.00021256]
[1610204975903,0.09062,40829.0,40813.0,0.00021256]
[1610204976302,0.13632608,40814.0,40812.0,3.04282608]
[1610204976702,0.13632608,40814.0,40813.0,0.00021256]
[1610204980005,0.07751,40818.0,40813.0,0.00021256]
[1610204980205,0.07751,40818.0,40817.0,3.50432608]
[1610204980803,0.07751,40818.0,40817.0,3.50453862]
[1610204981203,0.07751,40818.0,40817.0,3.50453861]
[1610204981405,0.07751,40818.0,40817.0,3.50432608]
[1610204981606,0.13632608,40820.0,40817.0,3.50453862]
[1610204981806,0.13632608,40820.0,40817.0,3.51468146]
[1610204982006,0.13632608,40820.0,40818.0,0.00021254]
[1610204982208,0.0728,40819.0,40818.0,0.00021254]
[1610204982405,0.15474,40819.0,40818.0,0.00021254]
[1610204982606,0.08194,40819.0,40818.0,0.00021254]
[1610204982907,0.15604,40819.0,40818.0,0.00021254]
[1610204984108,0.15604,40819.0,40818.0,0.01035628]
[1610204985207,0.08194,40819.0,40818.0,0.01035628]
[1610204985609,0.08194,40819.0,40818.0,0.00021254]
[1610204985808,3.03814,40819.0,40818.0,0.00021254]
[1610204986009,3.03814,40819.0,40807.0,0.01035781]
[1610204986209,3.03814,40819.0,40818.0,0.00021256]
[1610204986411,3.03814,40819.0,40812.0,0.13632608]
[1610204986810,3.03814,40819.0,40813.0,0.01035911]
[1610204987010,3.03814,40819.0,40813.0,0.00021258]
[1610204987210,3.03814,40819.0,40814.0,0.01014635]
[1610204987411,3.03814,40819.0,40814.0,0.01035893]
[1610204987610,3.03814,40819.0,40813.0,0.01035914]
[1610204987809,3.03814,40819.0,40815.0,0.01035921]
[1610204988010,3.03814,40819.0,40814.0,0.01035918]
[1610204988209,0.13632608,40815.0,40814.0,0.01035918]
[1610204988412,0.13632608,40815.0,40813.0,0.0103591]
[1610204988610,0.58912608,40815.0,40814.0,0.01035912]
[1610204988810,0.58912608,40815.0,40814.0,0.00021258]
[1610204989211,0.58912608,40815.0,40804.0,0.01036111]
[1610204989410,0.58912608,40815.0,40814.0,0.0002126]
[1610204989612,0.58912608,40815.0,40805.0,0.00021262]
[1610204990014,0.58912608,40815.0,40804.0,0.01036113]
[1610204990214,0.4528,40815.0,40806.0,0.00021262]
[1610204990413,0.4528,40815.0,40805.0,0.00021262]
[1610204990813,0.4528,40815.0,40807.0,0.00021262]
[1610204991013,0.4528,40815.0,40806.0,0.00021262]
[1610204991213,0.4528,40815.0,40808.0,0.00021262]
[1610204991613,0.4528,40815.0,40803.0,2.9489]
[1610204991614,0.4528,40815.0,40807.0,0.00021262]
[1610204991814,0.4528,40815.0,40809.0,0.00021262]
[1610204992013,1.5,40814.0,40808.0,0.00021264]
[1610204992214,0.13632608,40809.0,40808.0,0.00021264]
[1610204992414,0.13632608,40809.0,40792.0,0.13632608]
[1610204992617,1.73993608,40809.0,40808.0,0.00021263]
[1610204992813,1.73993608,40809.0,40796.0,3.8303]
[1610204993014,1.73993608,40809.0,40808.0,0.00021263]
[1610204993416,1.73993608,40809.0,40793.0,0.01036383]
[1610204993617,1.49978735,40808.0,40793.0,0.01015118]
[1610204994217,0.13632608,40796.0,40793.0,0.0103638]
[1610204997324,0.13632608,40796.0,40793.0,0.01015118]
[1610204997523,0.13632608,40796.0,40794.0,0.00021261]
[1610204997923,0.13632608,40796.0,40793.0,0.01036379]
[1610204998123,0.13632608,40796.0,40795.0,0.00021261]
[1610204998322,0.13632608,40796.0,40794.0,0.00021261]
[1610204998724,0.13632608,40796.0,40795.0,0.00021261]
[1610204998923,0.13632608,40796.0,40795.0,0.00021262]
[1610204999124,0.13632608,40796.0,40793.0,0.0103638]
[1610204999525,0.13632608,40796.0,40795.0,0.00021262]
[1610204999725,0.13632608,40796.0,40794.0,0.00021262]
[1610204999926,0.13632608,40796.0,40795.0,0.00021262]
[1610205000526,0.13632608,40796.0,40793.0,0.0103638]
[1610205000728,0.13632608,40796.0,40795.0,0.00021262]
[1610205000927,0.13632608,40796.0,40794.0,0.00021262]
[1610205001126,0.13632608,40796.0,40795.0,0.5104]
[1610205001527,0.13632608,40796.0,40795.0,0.52075964]
[1610205002028,0.08542,40800.0,40795.0,0.52075964]
[1610205002430,0.22174608,40800.0,40799.0,0.13632608]
[1610205002632,0.22174608,40800.0,40799.0,3.38412608]
[1610205002833,0.08542,40800.0,40799.0,3.3843387]
[1610205004036,0.0745,40800.0,40799.0,3.3843387]
[1610205004236,0.0745,40800.0,40799.0,3.39448455]
[1610205004636,0.10361,40809.0,40799.0,3.39448455]
[1610205005036,0.13632608,40814.0,40799.0,3.39448455]
[1610205005237,0.13632608,40814.0,40800.0,0.01035588]
[1610205006438,3.5373,40821.0,40811.0,0.13632608]
[1610205006839,3.5373,40821.0,40812.0,0.00021258]
[1610205007039,3.6102,40821.0,40812.0,0.00021258]
[1610205008041,3.5373,40821.0,40812.0,0.00021258]
[1610205008440,0.13632608,40813.0,40812.0,0.00021258]
[1610205008640,0.21617608,40813.0,40812.0,0.00021258]
[1610205009142,0.29027608,40813.0,40812.0,0.00021258]
[1610205009343,0.21617608,40813.0,40812.0,0.00021258]
[1610205010244,0.28997608,40813.0,40812.0,0.00021258]
[1610205010444,0.21617608,40813.0,40812.0,0.00021258]
[1610205011445,0.28867608,40813.0,40812.0,0.00021258]
[1610205011849,0.21617608,40813.0,40812.0,0.00021258]
[1610205012048,0.68227608,40813.0,40812.0,0.00021258]
[1610205012848,0.75537608,40813.0,40812.0,0.00021258]
[1610205013352,0.68227608,40813.0,40812.0,0.00021258]
[1610205014350,0.21617608,40813.0,40812.0,0.00021258]
[1610205014552,0.28887608,40813.0,40812.0,0.00021258]
[1610205014753,3.62987608,40813.0,40804.0,0.0103598]
[1610205014957,3.62987608,40813.0,40812.0,0.00021264]
[1610205015155,3.62987608,40813.0,40805.0,0.00021264]
[1610205015552,1.5,40812.0,40796.0,0.01036192]
[1610205015753,1.5,40812.0,40806.0,0.00021264]
[1610205015957,1.5,40812.0,40797.0,0.01036279]
[1610205016354,1.5,40812.0,40798.0,0.13632608]
[1610205016554,1.5,40812.0,40798.0,0.14668838]
[1610205016754,0.0745,40811.0,40799.0,0.01036247]
[1610205017153,1.5,40812.0,40799.0,0.01036247]
[1610205017354,3.42085,40813.0,40796.0,0.01036202]
[1610205017554,4.92085,40813.0,40800.0,0.00021266]
[1610205017855,4.92085,40813.0,40797.0,0.01036254]
[1610205018056,4.92085,40813.0,40801.0,0.00021266]
[1610205018458,0.13632608,40802.0,40796.0,0.01036261]
[1610205018658,0.13632608,40802.0,40796.0,0.01014995]
[1610205018857,0.13632608,40802.0,40797.0,0.00021266]
[1610205019258,0.13632608,40802.0,40796.0,0.01036261]
[1610205019458,0.13632608,40802.0,40798.0,0.00021266]
[1610205019659,0.0726,40801.0,40797.0,0.00021266]
[1610205020061,0.0726,40801.0,40799.0,0.00021266]
[1610205020261,0.0726,40801.0,40798.0,0.00021266]
[1610205020462,0.0726,40801.0,40800.0,0.00021266]
[1610205020862,0.13632608,40802.0,40799.0,0.00021266]
[1610205021065,0.13632608,40802.0,40800.0,0.00021266]
[1610205021464,0.13632608,40802.0,40796.0,0.01036261]
[1610205021864,4.0073,40800.0,40796.0,0.01036261]
[1610205022063,4.0073,40800.0,40786.0,3.3152145]
[1610205022262,4.0073,40800.0,40797.0,0.01036306]
[1610205022663,4.0073,40800.0,40798.0,0.01036323]
[1610205023062,4.0073,40800.0,40792.0,0.0103632]
[1610205023568,4.0073,40800.0,40792.0,0.01015054]
[1610205023767,4.0073,40800.0,40793.0,0.00021266]
[1610205023967,4.0073,40800.0,40792.0,0.0103632]
[1610205024169,4.0073,40800.0,40794.0,0.00021266]
[1610205024470,0.13632608,40795.0,40793.0,0.00021266]
[1610205024669,0.13632608,40795.0,40792.0,0.01015054]
[1610205025070,0.13632608,40795.0,40794.0,0.00021267]
[1610205025271,0.13632608,40795.0,40792.0,0.01036321]
[1610205025470,0.13632608,40795.0,40794.0,0.00021267]
[1610205025871,0.13632608,40795.0,40793.0,0.00021267]
[1610205025872,3.59702608,40795.0,40793.0,0.00021267]
[1610205026075,3.59702608,40795.0,40794.0,0.00021267]
[1610205026672,3.59702608,40795.0,40785.0,0.00971416]
[1610205026673,3.67142608,40795.0,40785.0,0.00971416]
[1610205026874,3.86362608,40795.0,40794.0,0.00021031]
[1610205027073,3.86362608,40795.0,40786.0,0.00971592]
[1610205027273,3.86362608,40795.0,40794.0,0.00021035]
[1610205027473,3.78922608,40795.0,40794.0,0.00021035]
[1610205027678,3.78922608,40795.0,40777.0,0.00971813]
[1610205027874,3.78922608,40795.0,40794.0,0.00021035]
[1610205028075,3.78922608,40795.0,40778.0,0.0097185]
[1610205028274,5.28922608,40795.0,40778.0,0.0097185]
[1610205028474,0.13632608,40779.0,40776.0,0.00971961]
[1610205028675,0.13632608,40779.0,40769.0,2.52714073]
[1610205028874,0.13632608,40779.0,40764.0,2.52735798]
[1610205028875,3.1822,40770.0,40764.0,2.52735798]
[1610205029174,0.13632608,40779.0,40765.0,0.03624148]
[1610205029576,3.9734,40766.0,40765.0,0.00972167]
[1610205029779,3.9734,40766.0,40763.0,0.02652403]
[1610205029976,3.9734,40766.0,40765.0,0.00972391]
[1610205030175,3.9734,40766.0,40764.0,0.00021043]
[1610205030577,0.13632608,40765.0,40763.0,0.00021043]
[1610205030778,0.13632608,40765.0,40756.0,2.52497668]
[1610205030976,3.0606,40764.0,40756.0,2.52497668]
[1610205031182,3.0606,40764.0,40751.0,2.52522535]
[1610205031377,3.0606,40764.0,40757.0,0.00021045]
[1610205031579,3.0606,40764.0,40752.0,0.00021047]
[1610205031779,3.0606,40764.0,40758.0,0.00021047]
[1610205032177,3.0606,40764.0,40748.0,0.00021047]
[1610205032378,3.0606,40764.0,40759.0,0.00021047]
[1610205032579,3.0606,40764.0,40747.0,0.11725]
[1610205032580,3.0606,40764.0,40749.0,0.00021049]
[1610205032879,3.0606,40764.0,40760.0,0.00021049]
[1610205033080,0.07422,40771.0,40750.0,0.00021049]
[1610205033283,3.3177,40761.0,40750.0,0.00021049]
[1610205033480,3.3177,40761.0,40748.0,0.00021049]
[1610205033683,3.3177,40761.0,40751.0,0.0002105]
[1610205033880,0.11752,40762.0,40749.0,0.0002105]
[1610205034280,0.11752,40762.0,40757.0,3.6509]
[1610205034480,0.11752,40762.0,40758.0,0.13632608]
[1610205034680,0.11752,40762.0,40758.0,0.13653656]
[1610205035080,0.11752,40762.0,40759.0,0.00021048]
[1610205035481,0.0724,40761.0,40759.0,0.00021048]
[1610205035781,0.11752,40762.0,40760.0,0.00021058]
[1610205036380,0.11752,40762.0,40759.0,0.00021058]
[1610205036582,0.13632608,40760.0,40758.0,0.13632608]
[1610205037582,0.13632608,40760.0,40758.0,0.08632608]
[1610205037983,0.0725,40759.0,40758.0,0.08632608]
[1610205038384,0.13632608,40760.0,40758.0,0.08653668]
[1610205038787,0.13632608,40760.0,40759.0,0.0002106]
[1610205039587,0.13632608,40760.0,40758.0,0.08632608]
[1610205043590,0.0732,40759.0,40758.0,0.08632608]
[1610205044392,0.13632608,40760.0,40758.0,0.08632608]
[1610205045196,0.0736,40759.0,40758.0,0.08632608]
[1610205045694,0.13632608,40760.0,40758.0,0.08632608]
[1610205051603,0.39785022,40760.0,40758.0,0.08632608]
[1610205052805,0.39785022,40760.0,40749.0,3.7523]
[1610205053205,0.39785022,40760.0,40750.0,0.00021059]
[1610205054504,0.13632608,40751.0,40750.0,0.13653667]
[1610205055105,0.13632608,40751.0,40750.0,0.13632608]
[1610205055506,0.13632608,40751.0,40738.0,0.10801]
[1610205055706,0.13632608,40751.0,40730.0,3.2367]
[1610205056105,0.13632608,40751.0,40731.0,0.00021061]
[1610205056305,0.13632608,40751.0,40731.0,0.1147098]
[1610205056608,0.26152414,40760.0,40742.0,0.13632608]
[1610205057206,0.26152414,40760.0,40743.0,0.00021061]
[1610205058707,0.13632608,40744.0,40743.0,0.00021061]
[1610205062717,0.13632608,40744.0,40743.0,3.33951061]
[1610205063716,0.13632608,40744.0,40743.0,0.00021061]
[1610205069924,0.20992608,40744.0,40743.0,0.00021061]
[1610205070124,0.20992608,40744.0,40738.0,0.00021065]
[1610205070326,0.20992608,40744.0,40743.0,0.00021065]
[1610205070525,0.20992608,40744.0,40739.0,0.00021065]
[1610205070724,0.13632608,40744.0,40739.0,0.00021065]
[1610205070925,0.13632608,40744.0,40730.0,0.13632608]
[1610205071126,0.13632608,40744.0,40731.0,0.00021065]
[1610205071530,3.5825,40734.0,40731.0,0.00021065]
[1610205071730,0.073,40733.0,40731.0,0.00021065]
[1610205072630,0.13632608,40732.0,40731.0,0.00021065]
[1610205074332,3.30532608,40732.0,40731.0,0.00021065]
[1610205074532,3.30532608,40732.0,40704.0,2.51028817]
[1610205074734,0.13632608,40705.0,40704.0,2.51028817]
[1610205074933,4.44822608,40705.0,40684.0,2.51097377]
[1610205075134,1.63632608,40705.0,40704.0,0.00021098]
[1610205075332,1.63632608,40705.0,40687.0,0.07512]
[1610205075533,1.63632608,40705.0,40656.0,2.95645919]
[1610205075534,1.6366265,40705.0,40644.0,2.51086586]
[1610205075734,4.1105,40686.0,40644.0,2.51086586]
[1610205075932,0.08767,40686.0,40615.0,2.51208531]
[1610205076132,3.097,40639.0,40615.0,2.51208531]
[1610205076336,0.00030062,40685.0,40609.0,2.65985504]
[1610205076337,0.09298,40652.0,40609.0,2.65985504]
[1610205076534,3.8577,40610.0,40580.0,2.22783736]
[1610205076735,2.943,40575.0,40570.0,2.50263112]
[1610205076933,0.13632608,40581.0,40570.0,2.50263112]
[1610205077133,0.13632608,40581.0,40564.0,2.64984472]
[1610205077134,0.13632608,40581.0,40561.0,2.50358032]
[1610205077336,0.0747,40580.0,40570.0,0.10804]
[1610205077536,4.1122,40571.0,40541.0,2.49135215]
[1610205077734,0.0736,40578.0,40541.0,2.49135215]
[1610205077935,0.0736,40578.0,40541.0,0.07809]
[1610205078134,0.0736,40578.0,40530.0,2.49169432]
[1610205078334,2.7964,40525.0,40521.0,2.49213308]
[1610205078540,5.1849,40535.0,40521.0,2.49213308]
[1610205078736,0.13632608,40522.0,40521.0,0.09452]
[1610205079137,0.23579608,40522.0,40521.0,0.09452]
[1610205079336,0.09947,40522.0,40521.0,0.09452]
[1610205079737,0.09947,40522.0,40521.0,2.896]
[1610205079938,0.02,40541.0,40521.0,2.896]
[1610205080136,0.02,40541.0,40521.0,2.96832]
[1610205080637,0.13632608,40535.0,40531.0,0.13632608]
[1610205080836,0.02,40541.0,40521.0,2.96832]
[1610205081438,0.02,40541.0,40526.0,3.2287]
[1610205081839,0.02,40541.0,40539.0,3.3594]
[1610205082040,0.02,40541.0,40539.0,3.44604]
[1610205082239,0.02,40541.0,40539.0,0.08664]
[1610205082445,2.8305,40540.0,40539.0,0.08664]
[1610205082843,3.08431608,40540.0,40539.0,0.08664]
[1610205083043,3.08431608,40540.0,40475.0,3.5845]
[1610205083239,0.25381608,40540.0,40452.0,0.1556]
[1610205083440,4.094,40538.0,40455.0,3.354]
[1610205084442,1.0,40512.0,40455.0,3.354]
[1610205084642,1.0,40512.0,40427.0,0.1556]
[1610205084643,1.0,40512.0,40508.0,0.13632608]
[1610205084842,1.0,40512.0,40508.0,0.25247608]
[1610205085047,1.0,40512.0,40509.0,3.2866]
[1610205085643,1.0,40512.0,40508.0,0.25247608]